fUSD/lending_fUSD_20240405
["ID","MTS","AMOUNT","RATE_DAILY","PERIOD"]
[321514803,1712279439461,-222.34510552,0.00035,2]
[321514804,1712279439473,-222.34510552,0.00035,2]
[321514805,1712279439490,-222.34510552,0.00035,2]
[321514806,1712279439500,-222.34510552,0.00035,2]
[321514807,1712279439510,-222.34510552,0.00035,2]
[321514808,1712279439520,-1000.0,0.00035436,2]
[321514809,1712279439529,-150.0,0.000364,4]
[321514810,1712279439539,-6575.0,0.00036437,2]
[321514811,1712279439548,-869.99,0.0003656,2]
[321514812,1712279439557,-214.0,0.00036813,2]
[321514813,1712279439567,-150.0,0.000369,5]
[321514814,1712279439576,-152.0,0.00036998,3]
[321514815,1712279439585,-627.54118887,0.00037,2]
[321514816,1712279439596,-627.54118887,0.00037,2]
[321514817,1712279439605,-627.54118887,0.00037,2]
[321514818,1712279439614,-375.50654432,0.00037,2]
[321514819,1712279439625,-375.50654432,0.00037,2]
[321514820,1712279439634,-375.50654432,0.00037,2]
[321514821,1712279439643,-41025.38695094,0.00037,2]
[321514822,1712279439652,-41025.38695094,0.00037,2]
[321514823,1712279439662,-41025.38695094,0.00037,2]
[321514824,1712279439671,-41025.38695094,0.00037,2]
[321514825,1712279439680,-250.0,0.00037,3]
[321514826,1712279439689,-678.663,0.00037222,2]
[321514827,1712279439698,-5504.649,0.00037222,2]
[321514828,1712279439707,-4786.0,0.00037222,2]
[321514829,1712279439717,-1050.0,0.00037222,2]
[321514830,1712279439727,-152.0,0.00037335,4]
[321514831,1712279439736,-168.41501804,0.00037394,4]
[321514832,1712279439745,-150.0,0.000374,5]
[321514833,1712279439755,-152.0,0.00037672,5]
[321514834,1712279439764,-906.28,0.000378,2]
[321514835,1712279439773,-3000.0,0.000378,15]
[321514836,1712279439783,-3000.0,0.0003781,15]
[321514837,1712279439792,-3000.0,0.0003782,15]
[321514838,1712279439801,-3000.0,0.0003783,15]
[321514839,1712279439810,-3000.0,0.0003784,15]
[321514840,1712279439818,-3000.0,0.0003785,15]
[321514842,1712279439828,-3000.0,0.0003786,15]
[321514844,1712279439837,-1000.0,0.0003787,2]
[321514846,1712279439849,-1028.01619751,0.0003787,2]
[321514848,1712279439858,-3000.0,0.0003787,16]
[321514850,1712279439867,-3000.0,0.0003788,16]
[321514853,1712279439876,-3000.0,0.0003789,16]
[321514856,1712279439885,-3000.0,0.000379,16]
[321514858,1712279439894,-150.0,0.000379,5]
[321514861,1712279439904,-3000.0,0.0003791,16]
[321514863,1712279439912,-3000.0,0.0003792,16]
[321514864,1712279439921,-4910.47469,0.0003793,16]
[321514865,1712279439930,-975.91,0.00038,2]
[321514866,1712279439939,-152.0,0.0003801,6]
[321514867,1712279439948,-2733.91,0.00038027,15]
[321514868,1712279439958,-152.0,0.00038347,7]
[321514869,1712279439967,-2000.0,0.00038356,2]
[321514870,1712279439977,-157.50196267,0.00038356,30]
[321514871,1712279439985,-500.0,0.00038356,2]
[321514872,1712279439995,-150.0,0.000384,5]
[321514873,1712279440004,-157.50196267,0.00038521,30]
[321514874,1712279440013,-176.16,0.00038657,2]
[321514875,1712279440022,-152.0,0.00038684,8]
[321514876,1712279440031,-155.0,0.000387,4]
[321514877,1712279440040,-826.52,0.000387,7]
[321514878,1712279440050,-157.50196267,0.00038712,30]
[321514879,1712279440059,-1000.0,0.0003877,2]
[321514880,1712279440068,-869.99,0.00038824,2]
[321514881,1712279440077,-777.891,0.00038844,2]
[321514882,1712279440086,-150.0,0.00038844,2]
[321514883,1712279440096,-1283.375,0.00038844,2]
[321514884,1712279440106,-562.022,0.00038844,2]
[321514885,1712279440115,-434.0,0.00038844,2]
[321514886,1712279440125,-606.0,0.00038844,2]
[321514887,1712279440133,-1139.0,0.00038844,2]
[321514888,1712279440144,-3032.0,0.00038844,2]
[321514889,1712279440153,-150.0,0.00038844,2]
[321514890,1712279440164,-1466.0,0.00038844,2]
[321514891,1712279440173,-397.0,0.00038844,2]
[321514892,1712279440182,-151.825,0.00038844,2]
[321514893,1712279440192,-2431.0,0.00038844,2]
[321514894,1712279440202,-1631.0,0.00038844,2]
[321514895,1712279440211,-207.0,0.00038844,2]
[321514896,1712279440220,-157.50196267,0.00038877,30]
[321514897,1712279440229,-1970.1951491,0.00038877,2]
[321514898,1712279440238,-1078227.87011582,0.0003888,2]
[321514899,1712279440247,-4065.34553289,0.000389,15]
[321514900,1712279440256,-2927.364979,0.000389,20]
[321514901,1712279440265,-150.0,0.000389,5]
[321514902,1712279440274,-1003.72,0.000389,2]
[321514903,1712279440283,-311.44,0.000389,2]
[321514904,1712279440291,-1000.0,0.00038904,120]
[321514905,1712279440301,-1000.0,0.0003898,2]
[321514906,1712279440310,-1876.61601221,0.0003899,3]
[321514907,1712279440319,-1211.0,0.00039,4]
[321514908,1712279440329,-300.0,0.00039,3]
[321514909,1712279440338,-392.369205,0.00039,13]
[321514910,1712279440348,-152.0,0.00039022,9]
[321514911,1712279440358,-157.50196267,0.00039041,30]
[321514912,1712279440367,-151.0,0.00039131,4]
[321514913,1712279440377,-151.0,0.00039148,2]
[321514914,1712279440386,-250.49088,0.00039148,2]
[321514915,1712279440398,-1000.0,0.0003917,2]
[321514916,1712279440408,-1392.78241518,0.00039171,2]
[321514917,1712279440418,-157.50196267,0.00039233,30]
[321514918,1712279440429,-394.03902982,0.00039301,2]
[321514919,1712279440439,-98079.73238199,0.00039304,2]
[321514920,1712279440450,-152.0,0.00039359,10]
[321514921,1712279440459,-692.74848988,0.00039396,11]
[321514922,1712279440468,-157.50196267,0.00039397,30]
[321514923,1712279440479,-906.28,0.000394,7]
[321514924,1712279440490,-150.0,0.000394,6]
[321514925,1712279440499,-157.040509,0.00039405,25]
[321514926,1712279440508,-157.040509,0.00039405,24]
[321514927,1712279440518,-157.040509,0.00039405,23]
[321514928,1712279440527,-157.040509,0.00039505,28]
[321514929,1712279440537,-157.040509,0.00039505,27]
[321514930,1712279440546,-157.040509,0.00039505,26]
[321514931,1712279440555,-3000.0,0.0003957,2]
[321514932,1712279440565,-6825.1578496,0.0003958,2]
[321514933,1712279440574,-157.50196267,0.00039589,30]
[321514934,1712279440583,-157.040509,0.00039605,31]
[321514935,1712279440593,-157.040509,0.00039605,30]
[321514936,1712279440603,-157.040509,0.00039605,29]
[321514937,1712279440613,-150.0,0.00039611,2]
[321514938,1712279440624,-3000.0,0.0003966,2]
[321514939,1712279440634,-152.0,0.00039696,11]
[321514940,1712279440643,-157.040509,0.00039705,34]
[321514941,1712279440653,-157.040509,0.00039705,33]
[321514942,1712279440662,-157.040509,0.00039705,32]
[321514943,1712279440671,-157.50196267,0.00039753,30]
[321514944,1712279440680,-3381308.6667907,0.00039789,2]
[321514945,1712279440690,-754.2245,0.000398,2]
[321514946,1712279440699,-486571.13348706,0.000398,2]
[321514947,1712279440709,-41025.38695094,0.000398,2]
[321514948,1712279440718,-157.040509,0.00039805,37]
[321514949,1712279440728,-157.040509,0.00039805,36]
[321514950,1712279440737,-157.040509,0.00039805,35]
[321514951,1712279440747,-302.0,0.00039805,4]
[321514952,1712279440756,-214.0,0.00039813,2]
[321514953,1712279440765,-1000.0,0.00039899,2]
[321514954,1712279440775,-975.91,0.000399,7]
[321514955,1712279440784,-152.76129197,0.000399,6]
[321514956,1712279440793,-150.0,0.000399,6]
[321514957,1712279440802,-157.040509,0.00039905,39]
[321514958,1712279440812,-157.040509,0.00039905,38]
[321514959,1712279440821,-157.040509,0.00039905,37]
[321514960,1712279440830,-157.50196267,0.00039918,30]
[321514961,1712279440839,-155.0,0.00039968,4]
[321514962,1712279440850,-155.40464767,0.00039969,4]
[321514963,1712279440859,-8875.28926657,0.00039969,4]
[321514964,1712279440868,-703.92171334,0.00039969,4]
[321514965,1712279440877,-326.80998617,0.00039969,4]
[321514966,1712279440887,-805.30673265,0.0003997,2]
[321514967,1712279440896,-1000.0,0.0003997,2]
[321514968,1712279440905,-2000.0,0.0003997,2]
[321514969,1712279440914,-200.0,0.0003997,2]
[321514970,1712279440923,-200.0,0.0003997,2]
[321514971,1712279440934,-261.68058527,0.0003997,2]
[321514972,1712279440943,-3299.55,0.0003998,2]
[321514973,1712279440952,-3000.0,0.0003998,2]
[321514974,1712279440962,-394.03902982,0.00039996,2]
[321514975,1712279440971,-1070.48208569,0.00039997,4]
[321514976,1712279440980,-155.43469678,0.00039997,4]
[321514977,1712279440990,-557.78976585,0.00039997,5]
[321514979,1712279440999,-201.70306154,0.00039997,4]
[321514981,1712279441008,-238.87638465,0.00039997,4]
[321514983,1712279441017,-155.67351033,0.00039997,4]
[321514985,1712279441026,-242.09022781,0.00039997,15]
[321514987,1712279441035,-272.70715086,0.00039997,4]
[321514989,1712279441044,-196.41457958,0.00039997,2]
[321514991,1712279441053,-269.0721569,0.00039997,4]
[321514993,1712279441062,-788.07805964,0.00039997,2]
[321514995,1712279441071,-7263.28347,0.00039998,2]
[321514997,1712279441080,-430.87012157,0.00039998,4]
[321514999,1712279441089,-609355.96775226,0.00039999,2]
[321515001,1712279441098,-698.15728235,0.0004,14]
[321515003,1712279441107,-547.14230713,0.0004,4]
[321515005,1712279441117,-22103.7237332,0.0004,4]
[321515007,1712279441126,-5758.8947196,0.0004,4]
[321515009,1712279441135,-192.76675003,0.0004,2]
[321515011,1712279441144,-1200.0,0.0004,40]
[321515013,1712279441153,-63002.02044945,0.0004,5]
[321515014,1712279441181,-189329.92906219,0.0004,5]
[321515015,1712279441192,-2184.07232075,0.0004,5]
[321515016,1712279441203,-1648.68209344,0.0004,5]
[321515020,1712279442877,-1494.14538249,0.0004,5]
[321515021,1712279443066,-16212.50000001,0.000249,2]
[321515022,1712279443103,-780.35845353,0.000249,2]
[321515023,1712279443115,-8402.58902867,0.000249,2]
[321515024,1712279443126,-8947.21879473,0.000249,2]
[321515025,1712279443138,-8943.78386462,0.000249,2]
[321515026,1712279443149,-9077.54866152,0.000249,2]
[321515027,1712279443161,-8943.84023489,0.000249,2]
[321515028,1712279443834,-27700.0,0.000249,2]
[321515029,1712279444048,-600.0,0.000249,2]
[321515030,1712279444059,-705.0,0.000249,2]
[321515031,1712279444070,-535.8,0.000249,2]
[321515032,1712279444098,-1673.26,0.000249,2]
[321515033,1712279444119,-1133.34860443,0.000249,2]
[321515081,1712279446082,-909.18055416,0.000249,2]
[321515082,1712279446305,-10041.89190664,0.000249,2]
[321515095,1712280632673,-407.84896223,0.00023272,2]
[321515096,1712280632683,-304.76031194,0.00023272,2]
[321515097,1712280632897,-226.79722075,0.00023272,2]
[321515098,1712280632907,-199.65396562,0.00023273,2]
[321515099,1712280632917,-178.57803296,0.00023478,2]
[321515100,1712280632927,-1000.0,0.00023578,2]
[321515101,1712280632937,-11909.99544442,0.00023999,2]
[321515102,1712280632946,-3500.0,0.00024,2]
[321515103,1712280632956,-163.91992341,0.00024649,2]
[321515104,1712280632965,-1056.59434806,0.00024899,2]
[321515105,1712280632974,-697.73,0.00024899,2]
[321515106,1712280632983,-150.99,0.00024899,2]
[321515107,1712280632992,-499.99,0.00024899,2]
[321515109,1712280633001,-2598.02792757,0.00025,2]
[321515111,1712280633011,-178.57803293,0.00028858,2]
[321515113,1712280633020,-156.25,0.00032877,2]
[321515114,1712280633029,-156.25,0.00032877,2]
[321515115,1712280633040,-3206.28076084,0.00032968,2]
[321515116,1712280633050,-536.19,0.00032969,2]
[321515117,1712280633059,-178.57803293,0.00034237,2]
[321515118,1712280633068,-166.45,0.00034586,2]
[321515119,1712280633077,-659.77,0.00034622,2]
[321515120,1712280633086,-659.77,0.00034631,2]
[321515121,1712280633096,-659.77,0.0003464,2]
[321515122,1712280633106,-659.77,0.00034649,2]
[321515123,1712280633115,-2175.11,0.00034652,2]
[321515124,1712280633124,-659.77,0.00034658,2]
[321515125,1712280633134,-659.77,0.00034667,2]
[321515126,1712280633143,-659.77,0.00034676,2]
[321515127,1712280633152,-659.77,0.00034685,2]
[321515128,1712280633162,-659.77,0.00034695,2]
[321515129,1712280633171,-659.77,0.00034704,2]
[321515130,1712280633181,-659.77,0.00034713,2]
[321515131,1712280633191,-659.77,0.00034722,2]
[321515132,1712280633201,-659.77,0.00034731,2]
[321515133,1712280633211,-659.77,0.0003474,2]
[321515134,1712280633221,-659.77,0.00034749,2]
[321515135,1712280633231,-659.77,0.00034758,2]
[321515136,1712280633241,-659.77,0.00034768,2]
[321515137,1712280633250,-659.77,0.00034777,2]
[321515138,1712280633260,-697.79,0.00034784,2]
[321515139,1712280633270,-659.77,0.00034786,2]
[321515140,1712280633279,-659.77,0.00034795,2]
[321515141,1712280633289,-191.95,0.00034983,2]
[321515142,1712280633298,-358.37,0.00034997,2]
[321515143,1712280633307,-250.0,0.00035018,115]
[321515144,1712280633316,-1000.0,0.00035019,2]
[321515145,1712280633325,-172.81,0.00035029,120]
[321515146,1712280633335,-10374.77,0.00035038,2]
[321515147,1712280633349,-758.87,0.00035049,2]
[321515148,1712280633359,-250.0,0.00035106,2]
[321515149,1712280633370,-1403.23,0.00035121,2]
[321515150,1712280633380,-500.0,0.00035148,2]
[321515151,1712280633390,-250.0,0.00035164,2]
[321515152,1712280633400,-171.68,0.00035191,2]
[321515153,1712280633410,-536.19,0.00035232,2]
[321515154,1712280633420,-200.0,0.00035238,2]
[321515155,1712280633430,-23900.0,0.00035278,2]
[321515156,1712280633440,-3321.26,0.00035323,2]
[321515157,1712280633450,-500.0,0.00035336,2]
[321515158,1712280633460,-1094.45,0.0003543,2]
[321515159,1712280633471,-150.0,0.00035628,2]
[321515160,1712280633481,-176.3,0.00035657,2]
[321515161,1712280633491,-171.68,0.00035802,2]
[321515162,1712280633501,-167.0,0.00035908,2]
[321515163,1712280633511,-801.13613401,0.00035998,4]
[321515164,1712280633521,-155.0,0.00035998,2]
[321515165,1712280633531,-171.68,0.00036413,2]
[321515166,1712280633541,-152.0,0.000368,30]
[321515167,1712280633551,-8208.35942114,0.00037,2]
[321515168,1712280633560,-1269.74291324,0.00037,2]
[321515169,1712280633570,-250.0,0.00037,3]
[321515170,1712280633579,-171.68,0.00037025,2]
[321515171,1712280633591,-536.19,0.00037496,2]
[321515172,1712280633604,-1000.0,0.000375,2]
[321515173,1712280633614,-697.79,0.00037524,2]
[321515174,1712280633624,-4250.71066942,0.0003773,4]
[321515175,1712280633633,-3000.0,0.000378,15]
[321515176,1712280633642,-3000.0,0.0003781,15]
[321515177,1712280633651,-3000.0,0.0003782,15]
[321515178,1712280633660,-3000.0,0.0003783,15]
[321515179,1712280633670,-3000.0,0.0003784,15]
[321515180,1712280633680,-3881.87205,0.0003785,15]
[321515181,1712280633689,-2563.04,0.00038027,15]
[321515182,1712280633698,-1260.388682,0.000389,15]
[321515183,1712280633708,-611.12,0.00038924,2]
[321515184,1712280633717,-207.0,0.00038924,2]
[321515185,1712280633726,-2390.0,0.00038924,2]
[321515186,1712280633736,-407.317,0.00038924,2]
[321515187,1712280633746,-150.743,0.00038924,2]
[321515188,1712280633755,-1060.162,0.00038924,2]
[321515189,1712280633765,-300.0,0.00039,3]
[321515190,1712280633775,-200.000001,0.00039,13]
[321515191,1712280633787,-1211.0,0.00039,4]
[321515192,1712280633798,-205.28159081,0.00039,3]
[321515193,1712280633807,-2927.364979,0.000391,21]
[321515194,1712280633817,-1008.34,0.000391,2]
[321515195,1712280633826,-460.52,0.000391,2]
[321515196,1712280633838,-398.6603,0.00039168,2]
[321515197,1712280633852,-156.25,0.00039384,2]
[321515198,1712280633863,-1000.0,0.00039396,2]
[321515199,1712280633874,-1000.0,0.00039478,2]
[321515200,1712280633883,-157.5019626,0.00039479,30]
[321515201,1712280633892,-505.75861044,0.00039505,2]
[321515202,1712280633902,-157.04051,0.00039605,28]
[321515203,1712280633911,-157.04051,0.00039605,27]
[321515204,1712280633921,-152.76129197,0.00039617,5]
[321515205,1712280633932,-178.57803293,0.00039617,2]
[321515206,1712280633942,-449.01122383,0.00039617,2]
[321515207,1712280633951,-2503.6312,0.00039617,120]
[321515208,1712280633960,-652.93863268,0.00039618,2]
[321515209,1712280633969,-652.93863267,0.00039618,2]
[321515210,1712280633979,-2619.353195,0.00039656,2]
[321515211,1712280633989,-157.04051,0.00039705,31]
[321515212,1712280633998,-157.04051,0.00039705,32]
[321515213,1712280634008,-157.04051,0.00039705,29]
[321515214,1712280634017,-1246.4,0.00039707,2]
[321515215,1712280634026,-1246.4,0.00039707,2]
[321515216,1712280634035,-1246.4,0.00039707,2]
[321515217,1712280634044,-1246.4,0.00039707,2]
[321515218,1712280634054,-1246.4,0.00039707,2]
[321515219,1712280634064,-375.20938572,0.00039715,2]
[321515220,1712280634075,-3467.23390816,0.00039715,4]
[321515221,1712280634085,-3169.93383487,0.00039715,4]
[321515222,1712280634096,-235.50244137,0.00039715,4]
[321515223,1712280634105,-3208.96648493,0.00039715,4]
[321515224,1712280634114,-272.70715086,0.00039716,4]
[321515225,1712280634124,-155.43469678,0.00039716,4]
[321515226,1712280634133,-326.80998617,0.00039716,4]
[321515227,1712280634142,-269.0721569,0.00039716,4]
[321515228,1712280634152,-557.78976585,0.00039716,5]
[321515229,1712280634161,-703.92171334,0.00039716,4]
[321515230,1712280634170,-155.0,0.00039716,4]
[321515231,1712280634180,-155.40464767,0.00039716,4]
[321515232,1712280634189,-1070.48208569,0.00039716,4]
[321515233,1712280634199,-155.67351033,0.00039716,4]
[321515234,1712280634208,-201.70306154,0.00039716,4]
[321515235,1712280634217,-196.41457958,0.00039716,2]
[321515236,1712280634226,-242.09022781,0.00039716,15]
[321515237,1712280634236,-238.87638465,0.00039716,4]
[321515238,1712280634244,-430.87012157,0.00039716,4]
[321515239,1712280634254,-156.20978343,0.00039716,4]
[321515240,1712280634264,-8875.28926657,0.00039717,4]
[321515241,1712280634274,-2782.22220325,0.00039717,2]
[321515242,1712280634284,-927.89065783,0.00039717,2]
[321515243,1712280634293,-1405.13653441,0.00039717,2]
[321515244,1712280634303,-4028.46492289,0.00039717,3]
[321515245,1712280634313,-1485.86484138,0.00039717,10]
[321515246,1712280634322,-300.0,0.00039717,15]
[321515247,1712280634331,-1000.0,0.00039717,10]
[321515248,1712280634341,-22908.64500914,0.00039717,31]
[321515255,1712280638365,-1957.58449002,0.00039717,31]
[321515256,1712280638375,-2673.72200501,0.00039717,7]
[321515257,1712280638385,-499.999999,0.00039717,2]
[321515258,1712280638394,-450.0,0.00039717,120]
[321515259,1712280638404,-676621.54536023,0.00039717,20]
[321515260,1712280638413,-945.6742334,0.00039717,4]
[321515261,1712280638422,-547.59726249,0.00039717,2]
[321515262,1712280638431,-150.0,0.00039717,2]
[321515263,1712280638440,-635.08382378,0.00039717,2]
[321515264,1712280638449,-609.13045787,0.00039717,2]
[321515265,1712280638459,-208.86253145,0.00039717,2]
[321515266,1712280638468,-37642.02526603,0.00039717,7]
[321515267,1712280638477,-437.00427402,0.00039717,2]
[321515269,1712280638486,-563.43145373,0.00039717,2]
[321515270,1712280638495,-3358.66555455,0.00039717,2]
[321515271,1712280638506,-234.07386978,0.00039717,2]
[321515272,1712280638515,-524.15022582,0.00039717,2]
[321515274,1712280638526,-887.3352409,0.00039717,2]
[321515276,1712280638535,-468.27988177,0.00039717,2]
[321515278,1712280638544,-384.84017058,0.00039717,2]
[321515280,1712280638553,-240.34106936,0.00039717,2]
[321515282,1712280638562,-27809.29094318,0.00039717,7]
[321515284,1712280638571,-8723.64002819,0.00039717,14]
[321515286,1712280638580,-316.75387914,0.00039717,2]
[321515288,1712280638588,-532.61463632,0.00039717,2]
[321515290,1712280638599,-13576.30682969,0.00039717,7]
[321515318,1712280640251,-188.00971502,0.00023172,2]
[321515319,1712280640261,-3220.0820458,0.00039717,7]
[321515320,1712280640337,-3551.26021207,0.00039717,7]
[321515357,1712280643515,-455.76,0.00036997,2]
[321515358,1712280643524,-455.76,0.00039261,2]
[321515359,1712280643534,-997.87695098,0.00039717,7]
[321515374,1712280643740,-8285.98611192,0.00039717,7]
[321515376,1712280643749,-526.74600646,0.00039717,5]
[321515378,1712280643758,-262.54115383,0.00039717,10]
[321515379,1712280643767,-354.30280344,0.00039717,2]
[321515382,1712280643776,-592.27813173,0.00039717,2]
[321515384,1712280643789,-1025.13592314,0.00039717,7]
[321515386,1712280643803,-350.0,0.00039717,7]
[321515407,1712280643990,-365.28042505,0.00039716,4]
[321515409,1712280644000,-631.4589434,0.00039717,7]
[321515411,1712280644009,-2235.88318947,0.00039717,2]
[321515525,1712280646075,-7414.54013525,0.00039716,4]
[321515526,1712280646494,-405.35108971,0.00039716,4]
[321515598,1712281351708,-517.93235788,0.0002479,2]
[321515599,1712281351731,-500.0,0.00024795,2]
[321515600,1712281351753,-6205.10762654,0.00024796,2]
[321515601,1712281351776,-300.0,0.00024796,2]
[321515602,1712281351801,-1319.7898,0.00024797,2]
[321515603,1712281351825,-812.6824,0.00024797,2]
[321515604,1712281351849,-472.85732737,0.000248,2]
[321515605,1712281351872,-8885.21176106,0.00024887,2]
[321515606,1712281351895,-445.17120386,0.00024895,2]
[321515607,1712281351918,-1944.60827828,0.00024895,2]
[321515608,1712281351940,-38596.63924501,0.00024897,2]
[321515634,1712281833186,-270.86266311,0.00024499,2]
[321515635,1712281833200,-229.13733689,0.00024499,2]
[321515636,1712281833209,-500.0,0.000245,2]
[321515637,1712281833219,-499.67456598,0.00024796,2]
[321515638,1712281833323,-500.93739885,0.00024796,2]
[321515639,1712281833375,-586.85226721,0.00024796,2]
[321515640,1712281838297,-646.94930553,0.00024796,2]
[321515641,1712281838621,-3970.69408897,0.00024796,2]
[321515642,1712281838631,-209.3387,0.00024797,2]
[321515643,1712281838642,-7110.2058,0.00024797,2]
[321515644,1712281838651,-433.4303,0.00024797,2]
[321515645,1712281838661,-738.7274,0.00024797,2]
[321515646,1712281838670,-425.57159466,0.000248,2]
[321515647,1712281838679,-194.8917549,0.00024896,2]
[321515648,1712281838688,-358.59306249,0.000249,2]
[321515649,1712281838699,-499.99,0.000249,2]
[321515650,1712281838709,-500.0,0.000255,2]
[321515651,1712281838720,-425.5715946,0.00027228,2]
[321515652,1712281838730,-850.0,0.000293,2]
[321515653,1712281838739,-425.5715946,0.00029657,2]
[321515654,1712281838748,-3206.54368318,0.0003,2]
[321515655,1712281838757,-10607.27,0.0003,2]
[321515657,1712281838766,-500.0,0.0003,2]
[321515659,1712281838775,-800.0,0.00031233,2]
[321515661,1712281838784,-278.92207692,0.0003125,2]
[321515662,1712281838793,-151.4,0.00031403,2]
[321515663,1712281838803,-425.5715946,0.00032085,2]
[321515664,1712281838812,-156.25,0.00032877,2]
[321515665,1712281838822,-156.25,0.00032877,2]
[321515666,1712281838831,-485.41,0.00033624,2]
[321515667,1712281838841,-425.5715946,0.00034513,2]
[321515668,1712281838850,-150.0,0.00034548,10]
[321515669,1712281838861,-200.0,0.00035639,2]
[321515670,1712281838870,-193.74489991,0.00035744,2]
[321515671,1712281838879,-231.58,0.00035878,2]
[321515672,1712281838889,-1000.0,0.00035888,2]
[321515673,1712281838898,-485.41,0.00035888,2]
[321515674,1712281838907,-632.39,0.00036036,2]
[321515675,1712281838916,-156.71,0.00036153,2]
[321515676,1712281838925,-23900.0,0.00036182,2]
[321515677,1712281838935,-250.0,0.00036328,115]
[321515678,1712281838944,-500.0,0.00036387,2]
[321515679,1712281838953,-1812.59,0.00036461,2]
[321515680,1712281838962,-166.45,0.00036471,2]
[321515681,1712281838971,-179.18,0.00036631,2]
[321515682,1712281838980,-425.5715946,0.00036942,2]
[321515683,1712281838990,-6576.59508177,0.00037,2]
[321515684,1712281838999,-21019.50759765,0.00037729,4]
[321515685,1712281839008,-2416.51,0.00038027,15]
[321515686,1712281839017,-156.71,0.00038037,2]
[321515687,1712281839026,-485.41,0.00038152,2]
[321515688,1712281839035,-231.58,0.00038618,2]
[321515689,1712281839044,-2825.02277784,0.0003888,2]
[321515690,1712281839054,-1446.32614305,0.00039,7]
[321515691,1712281839062,-16855.40910167,0.00039,3]
[321515692,1712281839071,-205.28159081,0.00039014,3]
[321515693,1712281839080,-961.964,0.00039016,2]
[321515694,1712281839089,-215.0,0.00039016,2]
[321515695,1712281839097,-165.0,0.00039016,2]
[321515696,1712281839107,-1050.0,0.00039016,2]
[321515697,1712281839115,-152.831,0.00039016,2]
[321515698,1712281839124,-150.0,0.00039016,2]
[321515699,1712281839133,-150.0,0.000391,21]
[321515700,1712281839142,-996.8,0.000391,2]
[321515701,1712281839150,-150.0,0.000391,2]
[321515702,1712281839159,-1000.0,0.00039178,5]
[321515703,1712281839169,-1000.0,0.00039178,5]
[321515704,1712281839178,-1000.0,0.00039178,5]
[321515705,1712281839187,-1000.0,0.00039178,5]
[321515706,1712281839196,-1000.0,0.00039178,5]
[321515707,1712281839209,-1000.0,0.00039178,5]
[321515708,1712281839218,-1000.0,0.00039178,5]
[321515709,1712281839227,-1000.0,0.00039178,5]
[321515710,1712281839236,-1000.0,0.00039178,5]
[321515711,1712281839246,-1000.0,0.00039178,5]
[321515712,1712281839255,-1000.0,0.00039178,5]
[321515713,1712281839264,-1000.0,0.00039178,5]
[321515714,1712281839274,-1000.0,0.00039178,5]
[321515715,1712281839285,-1000.0,0.00039178,5]
[321515716,1712281839295,-1000.0,0.00039178,5]
[321515717,1712281839305,-506.0,0.00039178,5]
[321515718,1712281839314,-425.5715946,0.0003937,2]
[321515719,1712281839324,-860.66628577,0.00039477,2]
[321515720,1712281839333,-164.24800266,0.00039599,3]
[321515721,1712281839343,-157.04051,0.00039605,31]
[321515722,1712281839352,-157.04051,0.00039605,30]
[321515723,1712281839364,-157.04051,0.00039605,29]
[321515724,1712281839375,-2063.3965,0.00039617,2]
[321515725,1712281839385,-1000.0,0.00039617,2]
[321515726,1712281839394,-538.0,0.00039617,5]
[321515727,1712281839403,-648.32748698,0.00039618,11]
[321515728,1712281839412,-200.0,0.0003968,15]
[321515729,1712281839422,-151.04051,0.00039705,29]
[321515730,1712281839431,-157.04051,0.00039705,33]
[321515731,1712281839441,-1711.50156949,0.00039715,4]